[Event "DFMM-LV 2023"]
[Site "Braunfels"]
[Date "2023.06.09"]
[Round "1.12"]
[White "Von Herman, Brigitte"]
[Black "Valkova, Angelika"]
[Result "1/2-1/2"]
[Annotator "TA"]
[ECO "B01"]
[WhiteElo "1904"]
[BlackElo "2062"]
[PlyCount "42"]
[EventDate "2023.06.09"]
[EventType "team-tourn"]
[EventCountry "GER"]
[SourceTitle "playchess.com"]
[Source "ChessBase"]
[SourceQuality "1"]
[TimeControl "40/5400+30:1800+30"]

{[%evp 12,27,28,25,62,13,45,31,32,27,35,10,8,11,12,10,18,16]} 1. e4 {[%emt 0:00:04]} d5 {[%emt 0:00:07]} 2. exd5 {[%emt 0:00:17]} Qxd5 {[%emt 0:00:11]} 3. Nc3 {[%emt 0:00:13]} Qa5 {[%emt 0:00:08]} 4. d4 {[%emt 0:00:14]} Nf6 {[%emt 0:00:16]} 5. Nf3 {[%emt 0:00:16]} Bf5 {[%emt 0:00:07]} 6. Bc4 {[%emt 0:10:57]} e6 {[%emt 0:00:14]} 7. O-O {[%emt 0:01:05]} Bb4 {[%emt 0:03:42] B01: Scandinavian Defence.} 8. Bd2 {[%emt 0:02:27]} (8. Nh4 $14) 8... Nbd7 {[%emt 0:06:47]} 9. a3 {[%emt 0:04:57]} (9. d5 {looks sharper.} O-O-O 10. dxe6 Nb6 11. Bb3) 9... Bxc3 {[%emt 0:00:07] White is slightly better.} 10. Bxc3 {[%emt 0:04:07]} Qb6 {[%emt 0:00:07]} 11. d5 {[%emt 0:06:02]} O-O {[%emt 0:04:33] The position is equal.} 12. dxe6 {[%emt 0:02:33]} Bxe6 {[%emt 0:00:46]} 13. Bxe6 {[%emt 0:00:40]} Qxe6 {[%emt 0:00:47]} 14. Re1 {[%emt 0:02:22] [#]   Weighted Error Value: White=0.20 (precise) /Black=0.12 (very precise) .  Loses game:     	---       	---        Missed win:     	---       	---        Mistake:       	White=1     	---        Inaccurate:     	---       	Black=1      OK:         	White=2     	Black=2      Best:        	---       	Black=1      Strong:       	---       	---        Brilliant:      	---       	---} {Predecessor:} Qf5 $146 15. Nd4 Qd5 16. Qf3 Qxf3 17. Nxf3 Rfe8 18. Rad1 Rxe1+ 19. Nxe1 Re8 20. Nf3 c5 21. Rf1 Re7 {½-½ Magem Badals,J (2545)-Cornette,M (2545) Catalunya-chT 2012 (1.1)} 1/2-1/2

[Event "DFMM-LV 2023"]
[Site "Braunfels"]
[Date "2023.06.09"]
[Round "1.13"]
[White "Gheng, Simona"]
[Black "Guder, Sibylle"]
[Result "1/2-1/2"]
[Annotator "TA"]
[ECO "B90"]
[WhiteElo "1918"]
[BlackElo "1808"]
[PlyCount "61"]
[EventDate "2023.06.09"]
[EventType "team-tourn"]
[EventCountry "GER"]
[SourceTitle "playchess.com"]
[Source "ChessBase"]
[SourceQuality "1"]
[TimeControl "40/5400+30:1800+30"]

{[%evp 15,61,0,22,18,19,18,22,20,14,13,20,5,19,-22,-16,-16,34,0,19,16,28,23,12,15,29,17,53,46,40,48,40,0,0,0,0,0,0,0,0,0,0,0,0,0,0,0,0,0]} 1. e4 {[%emt 0:00:08]} c5 {[%emt 0:00:05]} 2. Nf3 {[%emt 0:00:22]} d6 {[%emt 0:00:05]} 3. d4 {[%emt 0:00:08]} cxd4 {[%emt 0:00:06]} 4. Nxd4 {[%emt 0:00:09]} Nf6 {[%emt 0:00:10]} 5. Nc3 {[%emt 0:00:07]} a6 {[%emt 0:00:06]} 6. a4 {[%emt 0:00:17]} e5 {[%emt 0:01:16]} 7. Nf3 {[%emt 0:01:45]} Be7 {[%emt 0:01:11]} 8. Bc4 {[%emt 0:02:25]} h6 {[%emt 0:02:14] 8...Be6 gains popularity.} 9. O-O {[%emt 0:01:46] B90: Sicilian Najdorf: Unusual White 6th moves, 6 Be3 Ng4 and 6 Be3 e5.} O-O {[%emt 0:00:15]} 10. Re1 {[%emt 0:03:34]} Be6 {[%emt 0:09:35]} 11. Nd5 {[%emt 0:01:24]} Nxd5 {[%emt 0:01:29]} 12. Bxd5 {[%emt 0:00:16]} Qc7 {[%emt 0:02:11] [#]} 13. c3 $146 {[%emt 0:01:11]} ({Predecessor:} 13. c4 a5 14. b3 Bg4 15. h3 Bxf3 16. Qxf3 Nd7 17. Ba3 Nc5 18. Bxc5 dxc5 19. Rad1 {½-½ Meylan,A (2196)-Serefidou,D (1923) Barcelona Sant Marti op-A 17th 2015 (3)}) 13... Nd7 {[%emt 0:04:41]} 14. Be3 {[%emt 0:00:31]} Bxd5 {[%emt 0:10:40]} 15. Qxd5 {[%emt 0:00:27]} b6 {[%emt 0:03:31]} (15... Nf6 $11 16. Qd3 d5) 16. Rad1 {[%emt 0:01:57]} Rac8 {[%emt 0:06:55]} 17. Nd2 {[%emt 0:08:25][%cal Bf3d2,Bd2f1,Bf1e3,Be3d5][%mdl 32]} Qc6 {[%emt 0:05:21]} 18. Qxc6 {[%emt 0:01:14]} Rxc6 {[%emt 0:00:15]} 19. f3 {[%emt 0:00:10]} Rfc8 {[%emt 0:16:38]} 20. Bf2 {[%emt 0:00:38]} b5 {[%emt 0:05:18]} 21. axb5 {[%emt 0:02:16]} axb5 {[%emt 0:00:06]} 22. Nf1 {[%emt 0:00:06]} b4 {[%emt 0:02:59]} 23. Ne3 {[%emt 0:01:26] Nd5 would be deadly.} (23. cxb4 $5 {[%cal Rb4b5]} Rb8 24. Rc1 Rxc1 25. Rxc1 $16) 23... bxc3 {[%emt 0:01:08] The position is equal.} 24. bxc3 {[%emt 0:00:11]} Nf6 {[%emt 0:02:40]} 25. c4 {[%emt 0:03:59]} Ne8 {[%emt 0:04:42]} 26. Rb1 {[%emt 0:04:37]} Bg5 {[%emt 0:03:06]} 27. Nd5 {[%emt 0:01:24]} Bd8 {[%emt 0:02:53]} 28. Ne3 {[%emt 0:03:23]} Bg5 {[%emt 0:00:48]} 29. Nd5 {[%emt 0:00:12]} Bd8 {[%emt 0:00:05]} 30. Ne3 {[%emt 0:00:42]} Bg5 {[%emt 0:00:06]} 31. Nd5 {[%emt 0:00:06] Weighted Error Value: White=0.08 (flawless) /Black=0.08 (flawless)} 1/2-1/2

[Event "DFMM-LV 2023"]
[Site "Braunfels"]
[Date "2023.06.09"]
[Round "1.14"]
[White "Fock, Amina"]
[Black "Heil, Marina"]
[Result "1-0"]
[Annotator "NA RC COMBH"]
[ECO "C41"]
[WhiteElo "1836"]
[BlackElo "1866"]
[PlyCount "135"]
[EventDate "2023.06.09"]
[EventType "team-tourn"]
[EventCountry "GER"]
[SourceTitle "playchess.com"]
[Source "ChessBase"]
[SourceQuality "1"]
[TimeControl "40/5400+30:1800+30"]

1. e4 {[%emt 0:00:03]} d6 {[%emt 0:00:06]} 2. d4 {[%emt 0:00:05]} Nf6 {[%emt 0:00:06]} 3. Nc3 {[%emt 0:00:13]} Nbd7 {[%emt 0:00:16]} 4. Nf3 {[%emt 0:01:25]} e5 {[%emt 0:00:37]} 5. h3 {[%emt 0:02:56]} Be7 {[%emt 0:01:08]} 6. Be3 {[%emt 0:01:23]} c6 {[%emt 0:01:43]} 7. a4 {[%emt 0:01:45]} a5 {[%emt 0:00:09]} 8. Bc4 {[%emt 0:05:16]} h6 {[%emt 0:00:16]} 9. O-O {[%emt 0:02:56]} Qc7 {[%emt 0:00:38]} 10. Re1 {[%emt 0:03:07]} g5 {[%emt 0:07:10]} 11. Nh2 {[%emt 0:04:00]} exd4 {[%emt 0:06:52]} 12. Qxd4 {[%emt 0:04:18]} Ne5 {[%emt 0:01:39]} 13. Be2 {[%emt 0:02:45]} Rg8 {[%emt 0:03:13]} 14. Nf1 {[%emt 0:06:28]} g4 {[%emt 0:07:32]} 15. hxg4 {[%emt 0:07:53]} Nfxg4 {[%emt 0:03:19]} 16. Ng3 {[%emt 0:06:19]} Nxe3 {[%emt 0:15:40]} 17. Qxe3 {[%emt 0:00:11]} Ng4 {[%emt 0:00:17]} 18. Bxg4 {[%emt 0:02:04]} Bxg4 {[%emt 0:00:32]} 19. Nf5 {[%emt 0:02:28]} Rg6 {[%emt 0:04:35]} 20. Ne2 {[%emt 0:03:00]} O-O-O {[%emt 0:04:03]} 21. Nxe7+ {[%emt 0:05:19]} Qxe7 {[%emt 0:00:22]} 22. Nf4 {[%emt 0:02:12]} Rg5 {[%emt 0:02:25]} 23. Ra3 {[%emt 0:02:31]} Rdg8 {[%emt 0:02:36]} 24. Qd2 {[%emt 0:12:46]} Qe5 {[%emt 0:08:24]} 25. Rg3 {[%emt 0:01:25]} Kc7 {[%emt 0:07:40]} 26. Nd3 {[%emt 0:03:31]} Qd4 {[%emt 0:02:45]} 27. e5 {[%emt 0:00:46]} dxe5 {[%emt 0:06:49]} 28. Qxa5+ {[%emt 0:00:10]} Kb8 {[%emt 0:00:19]} 29. c3 {[%emt 0:02:17]} Qd7 {[%emt 0:04:50]} 30. Rxe5 {[%emt 0:03:40]} Bf5 {[%emt 0:00:18]} 31. Rxf5 {[%emt 0:01:59]} Rxg3 {[%emt 0:00:13]} 32. Qe5+ {[%emt 0:01:18]} Kc8 {[%emt 0:00:50]} 33. fxg3 {[%emt 0:00:37]} Qxd3 {[%emt 0:00:15]} 34. Rxf7 {[%emt 0:00:40]} Qd1+ {[%emt 0:03:44]} 35. Kh2 {[%emt 0:00:21]} Qd8 {[%emt 0:00:23]} 36. Qe7 {[%emt 0:02:34]} Qxe7 {[%emt 0:00:37]} 37. Rxe7 {[%emt 0:00:06]} Rg6 {[%emt 0:00:11]} 38. Kh3 {[%emt 0:05:11]} Kb8 {[%emt 0:00:23]} 39. b4 {[%emt 0:01:07]} Rd6 {[%emt 0:01:07]} 40. Re3 {[%emt 0:02:37]} Ka7 {[%emt 0:00:15]} 41. g4 {[%emt 0:30:29]} Kb6 {[%emt 0:30:15]} 42. c4 {[%emt 0:00:00]} Rd4 {[%emt 0:00:00]} 43. a5+ {[%emt 0:00:00]} Ka6 {[%emt 0:00:00]} 44. Rc3 {[%emt 0:00:00]} c5 {[%emt 0:00:00]} 45. bxc5 {[%emt 0:00:00]} Kxa5 {[%emt 0:00:00]} 46. Rb3 {[%emt 0:00:00]} Rxc4 {[%emt 0:00:00]} 47. Rxb7 {[%emt 0:00:00]} Rxc5 {[%emt 0:00:00]} 48. Rh7 {[%emt 0:00:00]} Rc1 {[%emt 0:00:00]} 49. Kg3 {[%emt 0:00:00]} Rc3+ {[%emt 0:00:00]} 50. Kh4 {[%emt 0:00:00]} Rc2 {[%emt 0:00:00]} 51. Rxh6 {[%emt 0:00:00]} Rxg2 {[%emt 0:00:00]} 52. Kh5 {[%emt 0:00:00]} Kb5 {[%emt 0:00:00]} 53. Rf6 {[%emt 0:00:00]} Kc5 {[%emt 0:00:00]} 54. g5 {[%emt 0:00:00]} Kd5 {[%emt 0:00:00]} 55. Kg6 {[%emt 0:00:00]} Ke5 {[%emt 0:00:00]} 56. Rf1 {[%emt 0:00:00]} Ke6 {[%emt 0:00:00]} 57. Re1+ {[%emt 0:00:00]} Kd7 {[%emt 0:00:00]} 58. Kf6 {[%emt 0:00:00]} Rf2+ {[%emt 0:00:00]} 59. Kg7 {[%emt 0:00:00]} Rg2 {[%emt 0:00:00]} 60. g6 {[%emt 0:00:00]} Kd8 {[%emt 0:00:00]} 61. Kf7 {[%emt 0:00:00]} Rf2+ {[%emt 0:00:00]} 62. Kg8 {[%emt 0:00:00]} Rg2 {[%emt 0:00:00]} 63. g7 {[%emt 0:00:00]} Kd7 {[%emt 0:00:00]} 64. Re4 {[%emt 0:00:00]} Kd6 {[%emt 0:00:00]} 65. Kf7 {[%emt 0:00:00]} Rf2+ {[%emt 0:00:00]} 66. Kg6 {[%emt 0:00:00]} Rg2+ {[%emt 0:00:00]} 67. Kf6 {[%emt 0:00:00]} Kd7 {[%emt 0:00:00]} 68. Re5 {[%emt 0:00:00]} 1-0

[Event "DFMM-LV 2023"]
[Site "Braunfels"]
[Date "2023.06.09"]
[Round "1.15"]
[White "Roesler, Hannah Clara"]
[Black "Fock, Sana"]
[Result "1/2-1/2"]
[Annotator "NA RC COMBH"]
[ECO "B22"]
[WhiteElo "1748"]
[BlackElo "1785"]
[PlyCount "96"]
[EventDate "2023.06.09"]
[EventType "team-tourn"]
[EventCountry "GER"]
[SourceTitle "playchess.com"]
[Source "ChessBase"]
[SourceQuality "1"]
[TimeControl "40/5400+30:1800+30"]

1. e4 {[%emt 0:00:01]} c5 {[%emt 0:00:07]} 2. c3 {[%emt 0:00:05]} d5 {[%emt 0:00:07]} 3. exd5 {[%emt 0:00:04]} Qxd5 {[%emt 0:00:07]} 4. d4 {[%emt 0:00:09]} Nc6 {[%emt 0:01:14]} 5. Nf3 {[%emt 0:00:11]} Bg4 {[%emt 0:01:35]} 6. Be2 {[%emt 0:00:58]} cxd4 {[%emt 0:00:43]} 7. cxd4 {[%emt 0:01:15]} e6 {[%emt 0:02:03]} 8. O-O {[%emt 0:05:07]} Nf6 {[%emt 0:01:37]} 9. Nc3 {[%emt 0:02:41]} Qd8 {[%emt 0:03:53]} 10. Qa4 {[%emt 0:07:55]} Be7 {[%emt 0:12:35]} 11. Rd1 {[%emt 0:11:39]} O-O {[%emt 0:12:31]} 12. d5 {[%emt 0:06:45]} exd5 {[%emt 0:01:37]} 13. Nxd5 {[%emt 0:01:47]} Bd7 14. Bg5 {[%emt 0:00:30]} Nxd5 15. Rxd5 {[%emt 0:00:30]} Bxg5 16. Nxg5 {[%emt 0:00:30]} Qe7 17. Qc2 {[%emt 0:00:30]} g6 18. Qd2 {[%emt 0:00:30]} Rad8 19. Bc4 {[%emt 0:00:30]} Rfe8 20. Qf4 {[%emt 0:00:30]} Kg7 21. Qxf7+ {[%emt 0:00:30]} Qxf7 22. Nxf7 {[%emt 0:00:30]} Be6 23. Rxd8 {[%emt 0:00:30]} Nxd8 24. Bxe6 {[%emt 0:00:30]} Nxe6 25. Ne5 {[%emt 0:00:30]} Nc5 26. Re1 {[%emt 0:00:30]} Nd7 27. Nf3 {[%emt 0:00:30]} Rxe1+ 28. Nxe1 {[%emt 0:00:30]} Nc5 29. f3 {[%emt 0:00:30]} Kf6 30. Kf2 {[%emt 0:00:30]} h6 31. Ke3 {[%emt 0:00:30]} Na4 32. Nd3 {[%emt 0:00:30]} Nb6 33. Kd4 {[%emt 0:00:30]} Nc8 34. Ne5 {[%emt 0:00:30]} Nb6 35. b3 {[%emt 0:00:30]} h5 36. a4 {[%emt 0:00:30]} Nc8 37. Nc4 {[%emt 0:00:30]} Ke6 38. a5 {[%emt 0:00:30]} Ne7 39. Ke4 {[%emt 0:00:30]} Nc6 40. Kf4 {[%emt 0:00:30]} Kf6 41. Ke4 {[%emt 0:30:30]} Ke6 42. h4 {[%emt 0:00:30]} Ne7 43. g4 {[%emt 0:00:30]} Nd5 44. Ne3 {[%emt 0:00:30]} Nc3+ 45. Kf4 {[%emt 0:00:30]} Kf6 46. Nc4 {[%emt 0:00:30]} Nd5+ 47. Ke4 {[%emt 0:00:30]} Ke6 48. Ne3 {[%emt 0:00:30]} Nc3+ 1/2-1/2

[Event "DFMM-LV 2023"]
[Site "Braunfels"]
[Date "2023.06.09"]
[Round "1.16"]
[White "Grosse-Honebrink, Brigitte"]
[Black "Sokyrko, Sofiia"]
[Result "1-0"]
[Annotator "NA RC COMBH"]
[ECO "A48"]
[WhiteElo "1891"]
[BlackElo "1503"]
[PlyCount "34"]
[EventDate "2023.06.09"]
[EventType "team-tourn"]
[EventCountry "GER"]
[SourceTitle "playchess.com"]
[Source "ChessBase"]
[SourceQuality "1"]
[TimeControl "40/5400+30:1800+30"]

1. d4 {[%emt 0:00:04]} Nf6 {[%emt 0:00:14]} 2. Nf3 {[%emt 0:00:12]} g6 {[%emt 0:00:14]} 3. Bf4 {[%emt 0:00:23]} Bg7 {[%emt 0:00:24]} 4. h3 {[%emt 0:00:19]} d6 {[%emt 0:00:19]} 5. e3 {[%emt 0:00:13]} Nbd7 {[%emt 0:00:24]} 6. Be2 {[%emt 0:00:54]} c5 {[%emt 0:00:25]} 7. c3 {[%emt 0:02:20]} O-O {[%emt 0:05:15]} 8. O-O {[%emt 0:00:08]} Nh5 {[%emt 0:29:24]} 9. Bh2 {[%emt 0:02:50]} cxd4 {[%emt 0:04:05]} 10. exd4 {[%emt 0:01:51]} e5 {[%emt 0:00:21]} 11. Nbd2 {[%emt 0:07:21]} f5 {[%emt 0:01:34]} 12. Nc4 {[%emt 0:03:11]} e4 {[%emt 0:01:51]} 13. Nfd2 {[%emt 0:01:59]} d5 {[%emt 0:00:55]} 14. Ne5 {[%emt 0:03:30]} f4 {[%emt 0:02:34]} 15. Bxh5 {[%emt 0:00:55]} gxh5 {[%emt 0:00:46]} 16. Nxd7 {[%emt 0:02:56]} Bxd7 {[%emt 0:00:26]} 17. Qb3 {[%emt 0:01:37]} Qg5 {[%emt 0:01:44]} 1-0

[Event "DFMM-LV 2023"]
[Site "Braunfels"]
[Date "2023.06.09"]
[Round "1.17"]
[White "Hund, Sarah"]
[Black "Rieseler, Caroline"]
[Result "1-0"]
[Annotator "TA"]
[ECO "B22"]
[WhiteElo "1977"]
[BlackElo "2126"]
[PlyCount "97"]
[EventDate "2023.06.09"]
[EventType "team-tourn"]
[EventCountry "GER"]
[SourceTitle "playchess.com"]
[Source "ChessBase"]
[SourceQuality "1"]
[TimeControl "40/5400+30:1800+30"]

{[%evp 16,97,29,13,37,13,39,8,92,-15,0,0,18,0,0,0,0,0,0,0,132,144,103,157,164,141,148,137,263,206,194,204,242,233,246,-36,216,214,206,216,220,230,245,235,263,225,220,224,252,258,252,252,294,227,279,274,395,358,549,553,539,514,29976,29977,29978,29979,29979,29980,29980,29979,29979,29979,29980,29980,29981,29982,29985,29986,29986,29987,29986,29987,29996,891]} 1. e4 {[%emt 0:00:03][%cal Be2e4,Be4e5][%mdl 32]} c5 {[%emt 0:00:06]} 2. c3 {[%emt 0:00:10]} Nf6 {[%emt 0:00:15]} 3. e5 {[%emt 0:00:12]} Nd5 {[%emt 0:00:07]} 4. Nf3 {[%emt 0:00:18]} Nc6 {[%emt 0:01:03]} 5. Bc4 {[%emt 0:00:55][%cal Bf1c4,Bc4b3,Bb3c2][%mdl 32]} Nb6 {[%emt 0:00:35]} 6. Bb3 {[%emt 0:00:24]} d5 {[%emt 0:00:39]} 7. exd6 {[%emt 0:01:27]} Qxd6 {[%emt 0:00:12]} 8. O-O {[%emt 0:01:57]} c4 {[%emt 0:07:19]} 9. Bc2 $1 {[%emt 0:00:24]} Bg4 {[%emt 0:01:15] B22: Sicilian: 2 c3.} 10. Re1 $1 {[%emt 0:02:49] Inhibits Ne5. 10.Re1 scores better than 10.h3.} O-O-O {[%emt 0:06:45]} 11. Na3 {[%emt 0:04:28]} (11. h3 $5 {[%cal Rh3g4]} Bxf3 12. Qxf3 $11) 11... e6 {[%emt 0:11:26]} (11... Qf6 $1 $11) 12. Qe2 {[%emt 0:06:48]} (12. Re4 $16 Bf5 13. Nxc4 Nxc4 14. Rxc4) 12... Qf4 $11 {[%emt 0:12:59]} 13. d4 {[%emt 0:12:54] [#]} Bxf3 $146 {[%emt 0:11:55]} ({Predecessor:} 13... cxd3 14. Bxd3 Bxf3 15. Bxf4 Bxe2 16. Bxe2 Nd5 17. Bg3 e5 18. Nc4 f6 19. a4 Kb8 {1-0 Kislinsky,A (2452)-Allahverdiyeva,A (2088) Titled Tuesday intern op 03rd Nov blitz 2020 (3)}) 14. gxf3 {[%emt 0:10:15]} Qh4 {[%emt 0:02:23]} 15. Nxc4 {[%emt 0:06:14]} Nxc4 {[%emt 0:06:19][%mdl 64] [#] Remove Defender} 16. Qxc4 {[%emt 0:00:10]} Bd6 {[%emt 0:02:22]} 17. Be4 $36 {[%emt 0:04:56][%mdl 2048] White has good play.} Bxh2+ {[%emt 0:01:56]} (17... Qxh2+ $11 {keeps the balance.} 18. Kf1 Kb8) 18. Kg2 $16 {[%emt 0:01:03]} Bc7 {[%emt 0:04:23]} 19. Rh1 {[%emt 0:07:49]} (19. Bxc6 {keeps more tension.} bxc6 20. Qxc6 Qh2+ 21. Kf1) 19... Qe7 {[%emt 0:09:46]} 20. Bxc6 {[%emt 0:02:57]} ({And not} 20. Bxh7 g6 21. Bd2 f6 $17) (20. Rxh7 $2 Rxh7 21. Bxh7 Rh8 $19) 20... bxc6 {[%emt 0:00:07]} 21. Qxc6 {[%emt 0:00:37]} e5 {[%emt 0:03:01] Against Bf4} (21... Qd6 $16 {was worth a try.} 22. Qa8+ Bb8) 22. Qa6+ {[%emt 0:06:12]} Kb8 {[%emt 0:00:54]} 23. dxe5 {[%emt 0:00:33]} ({Don't play} 23. Qb5+ Ka8 24. Qc6+ Kb8 25. dxe5 Bxe5 26. Qb5+ Ka8) 23... Rd5 {[%emt 0:02:11]} 24. Be3 {[%emt 0:03:50]} Ra5 {[%emt 0:00:45]} 25. Bxa7+ {[%emt 0:01:15]} Ka8 {[%emt 0:00:08] Loses the game.} 26. Bc5+ {[%emt 0:00:15]} Rxa6 {[%emt 0:00:07]} 27. Bxe7 {[%emt 0:00:05]} Rg6+ {[%emt 0:00:56]} 28. Kf1 {[%emt 0:00:45]} Bxe5 {[%emt 0:04:27]} 29. Rd1 {[%emt 0:03:53]} Re8 {[%emt 0:00:34]} 30. Rd8+ {[%emt 0:02:38]} Rxd8 {[%emt 0:00:04]} 31. Bxd8 $18 {[%emt 0:00:05][%mdl 4096] Endgame KRB-KRB} Rd6 {[%emt 0:01:36] aiming for ...Rd1+.} 32. Bg5 {[%emt 0:00:50]} h6 {[%emt 0:00:43]} 33. Be3 {[%emt 0:01:23]} Kb7 {[%emt 0:02:41]} 34. Ke2 {[%emt 0:03:37]} g5 {[%emt 0:00:19]} 35. Rd1 {[%emt 0:02:03] Black must now prevent Rxd6.} Rxd1 {[%emt 0:01:21]} (35... Ra6 $142 36. a3 Kc7) 36. Kxd1 {[%emt 0:00:04] KB-KB} f5 {[%emt 0:00:07] [#]} (36... Ka6 {was called for.} 37. Ke2 Kb5) 37. f4 $1 {[%emt 0:02:02]} gxf4 {[%emt 0:02:28]} 38. Bd4 {[%emt 0:01:07]} Bxd4 {[%emt 0:01:07]} (38... Bb8 $18 39. Bg7 h5) 39. cxd4 {[%emt 0:00:06] KP-KP. White mates.} h5 {[%emt 0:00:08]} 40. Ke2 {[%emt 0:01:35]} h4 {[%emt 0:00:05]} 41. Kf1 {[%emt 0:31:33]} Kc6 {[%emt 0:30:20]} 42. Kg2 {[%emt 0:00:31]} Kd5 {[%emt 0:00:16]} 43. Kh3 {[%emt 0:00:25]} Kxd4 {[%emt 0:00:35] K3P-K3P} 44. b4 {[%emt 0:02:28]} Ke4 {[%emt 0:00:25]} 45. b5 {[%emt 0:00:15]} Kf3 {[%emt 0:00:04]} 46. b6 {[%emt 0:00:10]} Kxf2 {[%emt 0:00:05]} 47. b7 {[%emt 0:00:06]} f3 {[%emt 0:00:24]} 48. b8=Q {[%emt 0:00:07]} Kg1 {[%emt 0:00:33]} 49. Qb1+ {[%emt 0:01:03] Weighted Error Value: White=0.30/Black=0.36} (49. Qh2+ $142 Kf1 50. Qd2 f4 51. a4 Kg1 52. Qe1#) 1-0

[Event "DFMM-LV 2023"]
[Site "Braunfels"]
[Date "2023.06.09"]
[Round "1.19"]
[White "Haug, Mara"]
[Black "Barpiyeva, Gulsana"]
[Result "0-1"]
[Annotator "TA"]
[ECO "B43"]
[WhiteElo "1754"]
[BlackElo "2023"]
[PlyCount "76"]
[EventDate "2023.06.09"]
[EventType "team-tourn"]
[EventCountry "GER"]
[SourceTitle "playchess.com"]
[Source "ChessBase"]
[SourceQuality "1"]
[TimeControl "40/5400+30:1800+30"]

{[%evp 14,76,-22,-121,-17,-7,8,-10,31,45,97,82,148,147,109,48,129,0,0,-12,-7,-81,-87,-77,0,-22,-38,-225,183,176,290,315,304,318,312,290,288,214,258,164,314,300,259,204,204,203,195,180,204,147,141,120,185,129,131,133,304,-29980,-29981,-29979,-29979,-29989,-29990,-29998,-29999]} 1. e4 {[%emt 0:00:04]} c5 {[%emt 0:00:13]} 2. Nf3 {[%emt 0:00:07]} e6 {[%emt 0:00:12]} 3. d4 {[%emt 0:00:08]} cxd4 {[%emt 0:00:10]} 4. Nxd4 {[%emt 0:00:12]} a6 {[%emt 0:00:10]} 5. Nc3 {[%emt 0:00:58]} Qc7 {[%emt 0:00:09]} 6. Be3 {[%emt 0:01:47]} Bb4 {[%emt 0:00:37]} 7. Qd3 {[%emt 0:03:13] is the new trend.} Nf6 {[%emt 0:01:09]} 8. Be2 {[%emt 0:06:05]} (8. Nde2 $11 {keeps the balance.}) 8... Bxc3+ {[%emt 0:06:25] B43: Sicilian: Kan Variation: 5 Nc3.} (8... Nxe4 $1 $17 9. a3 Bxc3+ 10. bxc3 Qxc3+ 11. Qxc3 Nxc3) 9. bxc3 $11 {[%emt 0:05:21][%cal Bb2c3,Bc3c4][%mdl 32] [#]} Nxe4 $1 {[%emt 0:04:11][%mdl 64] Deflection} 10. c4 {[%emt 0:03:36]} Nc5 {[%emt 0:02:33] The position is equal.} 11. Qa3 {[%emt 0:04:54][%cal Od4f5][%mdl 1024] Strongly threatening Nf5! White has compensation.} b6 {[%emt 0:22:27]} (11... O-O $14) 12. Nb5 $1 $16 {[%emt 0:09:27]} Qc6 {[%emt 0:06:25] [#]} (12... Qe5 $142 13. Rd1 O-O) 13. Bf3 $146 {[%emt 0:01:59]} ({Predecessor:} 13. Nd4 Qa4 14. Qb2 Qa5+ 15. Bd2 Na4 16. Bxa5 Nxb2 17. Bxb6 Bb7 18. O-O O-O 19. Rab1 {0-1 Juvan,J-Sarbu,A EU Union-ch U10 10th 2012 (9)}) 13... d5 {[%emt 0:00:27] [#]} 14. Nd4 {[%emt 0:03:30]} (14. Nc3 $1 $16) 14... Qd6 {[%emt 0:04:30]} (14... Qa4 $14 15. Qxa4+ Nxa4) 15. Nb5 {[%emt 0:07:07]} (15. cxd5 $16 exd5 16. Nb5 axb5 17. Qxa8) 15... axb5 $11 {[%emt 0:09:46]} 16. Qxa8 {[%emt 0:01:21] Hoping for 0-0.} bxc4 {[%emt 0:07:37]} 17. O-O {[%emt 0:05:31]} (17. Rb1 $1 $11 d4 18. Bxd4 Qxd4 19. Qxb8 Qc3+ 20. Kf1) 17... O-O $17 {[%emt 0:04:53]} 18. Qa3 {[%emt 0:03:12]} d4 {[%emt 0:04:39]} (18... Bd7 $17) 19. Rfd1 $11 {[%emt 0:04:59]} e5 {[%emt 0:00:49] ...Qf6 would be deadly.} 20. Rab1 $2 {[%emt 0:06:58]} (20. c3 $1 $15 d3 21. Bxc5 bxc5 22. Qa4) 20... Be6 $4 {[%emt 0:10:52][%mdl 8192] [#]} (20... Bf5 $19 21. Qb2 Nbd7 22. Bxd4 exd4 23. Rxd4 Qf6) 21. c3 $36 {[%emt 0:01:39][%cal Rc3d4][%mdl 2048] Black is under strong pressure.} d3 {[%emt 0:05:29] [#]} (21... Bf5 {keeps fighting.}) 22. Rxb6 $3 {[%emt 0:03:45][%mdl 576] Decoy} Qxb6 {[%emt 0:00:01]} 23. Bxc5 {[%emt 0:00:10] This pair of bishops is nice.} ({Inferior is} 23. Qxc5 Qxc5 24. Bxc5 Rd8 $17) 23... Qd8 {[%emt 0:00:19] Threatens to win with ...Re8.} 24. Bxf8 {[%emt 0:00:09]} Qxf8 {[%emt 0:00:02]} 25. Qxf8+ {[%emt 0:00:54]} Kxf8 {[%emt 0:00:02][%mdl 4096] Endgame KRB-KBN} 26. Kf1 {[%emt 0:01:53]} f5 {[%emt 0:00:54]} (26... Na6 $142 27. Ke1 Ke7) 27. Bb7 {[%emt 0:02:05]} Nd7 {[%emt 0:00:54]} 28. Rb1 {[%emt 0:04:35]} Nc5 {[%emt 0:04:12]} 29. Ke1 {[%emt 0:02:38] And now Rb5 would win.} Ke7 {[%emt 0:00:31]} 30. Rb5 {[%emt 0:02:19]} Kd6 {[%emt 0:00:16]} 31. Rb6+ {[%emt 0:00:42]} Ke7 {[%emt 0:00:49]} 32. Kd2 {[%emt 0:00:58]} e4 {[%emt 0:00:56]} (32... g5 $16 33. f3 f4) 33. Bc6 {[%emt 0:02:25]} ({White should play} 33. f3 $18) 33... f4 $16 {[%emt 0:01:29]} 34. Ba8 {[%emt 0:05:10]} Bf5 $2 {[%emt 0:00:31]} (34... g5 $16 35. Rb8 Kd6) 35. Rc6 $4 {[%emt 0:01:27][%mdl 8192] [#]} (35. Bd5 $18) 35... e3+ $1 {[%emt 0:01:23][%mdl 576] Promotion. Black mates.} 36. fxe3 {[%emt 0:00:18]} Ne4+ {[%emt 0:00:11]} 37. Ke1 {[%emt 0:01:52]} d2+ {[%emt 0:00:15]} ({And not} 37... fxe3 38. Rc7+ (38. Rxc4 $2 {too greedy.} d2+ 39. Ke2 Bg4+ 40. Kxe3 d1=Q $19) 38... Kd6 39. Rxc4 d2+ 40. Ke2 Bg4+ 41. Kxe3 $19) 38. Ke2 {[%emt 0:01:04]} Bg4+ {[%emt 0:00:12] Never resign too early!   Weighted Error Value: White=0.46/Black=0.64} 0-1